[Event "Early-Titled-Tuesday-Blitz-January-16-2024"]
[Site "Chess.com"]
[Date "2024.01.16"]
[Round "3"]
[White "GalaxyRoman"]
[Black "HiHaruka"]
[Result "1-0"]
[WhiteElo "2872"]
[BlackElo "2524"]
[TimeControl "180+1"]
[EndTime "8:30:39 PST"]
[Termination "GalaxyRoman won by resignation"]

1. d4 {[%clk 0:03:00.9]} 1... f5 {[%clk 0:02:38.5]} 2. c4 {[%clk 0:02:59]} 2...
Nf6 {[%clk 0:02:38]} 3. g3 {[%clk 0:02:57.9]} 3... e6 {[%clk 0:02:37.9]} 4. Bg2
{[%clk 0:02:56.6]} 4... Be7 {[%clk 0:02:37.8]} 5. Nc3 {[%clk 0:02:56.9]} 5...
O-O {[%clk 0:02:36.6]} 6. Nf3 {[%clk 0:02:54.8]} 6... d6 {[%clk 0:02:34]} 7. O-O
{[%clk 0:02:55.2]} 7... Qe8 {[%clk 0:02:33.6]} 8. Re1 {[%clk 0:02:48.2]} 8...
Qg6 {[%clk 0:01:50.9]} 9. Nh4 {[%clk 0:02:42.3]} 9... Qh5 {[%clk 0:01:12.2]} 10.
e3 {[%clk 0:02:28.1]} 10... Qxd1 {[%clk 0:00:57.7]} 11. Rxd1 {[%clk 0:02:24.8]}
11... e5 {[%clk 0:00:55.2]} 12. dxe5 {[%clk 0:02:18.6]} 12... dxe5 {[%clk
0:00:55]} 13. Nf3 {[%clk 0:02:19.3]} 13... e4 {[%clk 0:00:48.6]} 14. Nd4 {[%clk
0:02:18.1]} 14... c5 {[%clk 0:00:48.6]} 15. Ndb5 {[%clk 0:02:18]} 15... Na6
{[%clk 0:00:48]} 16. Nd5 {[%clk 0:02:18.2]} 16... Nxd5 {[%clk 0:00:47.4]} 17.
cxd5 {[%clk 0:02:19.1]} 17... Bd7 {[%clk 0:00:44.6]} 18. Nc3 {[%clk 0:02:17.5]}
18... Nb4 {[%clk 0:00:44]} 19. Bf1 {[%clk 0:02:14.6]} 19... Bf6 {[%clk
0:00:40.5]} 20. a3 {[%clk 0:02:12.9]} 20... Na6 {[%clk 0:00:24.8]} 21. Rb1
{[%clk 0:02:05.1]} 21... Nc7 {[%clk 0:00:18.7]} 22. d6 {[%clk 0:01:57.3]} 22...
Ne6 {[%clk 0:00:17.5]} 23. Nd5 {[%clk 0:01:57.6]} 23... Be5 {[%clk 0:00:16.8]}
24. Bc4 {[%clk 0:01:55.6]} 24... Kh8 {[%clk 0:00:16.4]} 25. Nf4 {[%clk 0:01:54]}
25... Nxf4 {[%clk 0:00:15.3]} 26. exf4 {[%clk 0:01:48.6]} 26... Bd4 {[%clk
0:00:15.3]} 27. Be3 {[%clk 0:01:48.6]} 27... Bxe3 {[%clk 0:00:15.4]} 28. fxe3
{[%clk 0:01:49.5]} 28... Bc6 {[%clk 0:00:15.6]} 29. Bd5 {[%clk 0:01:49.2]} 29...
Rad8 {[%clk 0:00:12.9]} 30. Bxc6 {[%clk 0:01:49]} 30... bxc6 {[%clk 0:00:13.7]}
31. Rbc1 {[%clk 0:01:49.4]} 31... Rf6 {[%clk 0:00:14.1]} 32. d7 {[%clk
0:01:46.4]} 32... Rf7 {[%clk 0:00:14.5]} 33. Rxc5 {[%clk 0:01:45.7]} 33... Rfxd7
{[%clk 0:00:15]} 34. Rxd7 {[%clk 0:01:41.8]} 34... Rxd7 {[%clk 0:00:15.9]} 35.
Rxf5 {[%clk 0:01:38]} 35... g6 {[%clk 0:00:16.5]} 36. Re5 {[%clk 0:01:31.3]}
36... Rd1+ {[%clk 0:00:16.9]} 37. Kg2 {[%clk 0:01:31.1]} 37... Rd2+ {[%clk
0:00:17.8]} 38. Kh3 {[%clk 0:01:31.7]} 38... Rxb2 {[%clk 0:00:18.7]} 39. Rxe4
{[%clk 0:01:32.4]} 39... Rb3 {[%clk 0:00:18.4]} 40. a4 {[%clk 0:01:31.7]} 40...
c5 {[%clk 0:00:18.4]} 41. Rc4 {[%clk 0:01:31.5]} 41... Rb4 {[%clk 0:00:15.1]}
42. Rxc5 {[%clk 0:01:31.6]} 42... Rxa4 {[%clk 0:00:15.7]} 43. Rc8+ {[%clk
0:01:32.2]} 43... Kg7 {[%clk 0:00:15.4]} 44. Kg2 {[%clk 0:01:32.8]} 44... a5
{[%clk 0:00:15]} 45. Kf3 {[%clk 0:01:32.8]} 45... Rb4 {[%clk 0:00:14.8]} 46. Ra8
{[%clk 0:01:33.3]} 46... Rb5 {[%clk 0:00:15.2]} 47. h4 {[%clk 0:01:32.7]} 47...
h5 {[%clk 0:00:15.3]} 48. Ra7+ {[%clk 0:01:31.4]} 48... Kf6 {[%clk 0:00:15.8]}
49. e4 {[%clk 0:01:31.8]} 49... Rb3+ {[%clk 0:00:14.9]} 50. Kg2 {[%clk 0:01:32]}
50... Rb2+ {[%clk 0:00:14.4]} 51. Kh3 {[%clk 0:01:31.9]} 51... Rb4 {[%clk
0:00:14.8]} 52. Ra6+ {[%clk 0:01:32.1]} 52... Kf7 {[%clk 0:00:14.9]} 53. e5
{[%clk 0:01:32.7]} 53... a4 {[%clk 0:00:15]} 54. Kg2 {[%clk 0:01:31.9]} 54...
Rb2+ {[%clk 0:00:14.5]} 55. Kh3 {[%clk 0:01:31.5]} 55... Rb4 {[%clk 0:00:14.8]}
56. Ra7+ {[%clk 0:01:31.7]} 56... Ke6 {[%clk 0:00:14.9]} 57. Rg7 {[%clk
0:01:28.5]} 57... Kf5 {[%clk 0:00:11]} 58. Rf7+ {[%clk 0:01:28]} 58... Ke4
{[%clk 0:00:11.4]} 59. Rf6 {[%clk 0:01:15.4]} 59... a3 {[%clk 0:00:10.1]} 60.
Ra6 {[%clk 0:01:12]} 60... Rb3 {[%clk 0:00:10.4]} 61. e6 {[%clk 0:01:12.5]}
61... Kf3 {[%clk 0:00:10.6]} 62. e7 {[%clk 0:01:04.8]} 62... Rb8 {[%clk
0:00:06.7]} 63. Rxa3+ {[%clk 0:01:04.5]} 63... Kf2 {[%clk 0:00:07.3]} 64. Ra2+
{[%clk 0:01:01.2]} 64... Kf3 {[%clk 0:00:07]} 65. Ra1 {[%clk 0:01:01.8]} 65...
Re8 {[%clk 0:00:07]} 66. Re1 {[%clk 0:01:01.8]} 66... Kf2 {[%clk 0:00:07.3]} 67.
Re6 {[%clk 0:01:02.3]} 67... Kf3 {[%clk 0:00:08.2]} 68. Kh2 {[%clk 0:01:02.4]}
68... Kf2 {[%clk 0:00:08.3]} 69. Re5 {[%clk 0:01:02.4]} 69... Kf3 {[%clk
0:00:08.7]} 70. Kh3 {[%clk 0:01:03]} 70... Kf2 {[%clk 0:00:08.9]} 71. Re4 {[%clk
0:01:00.4]} 71... Kf3 {[%clk 0:00:09.2]} 72. Re6 {[%clk 0:01:00.3]} 72... Kf2
{[%clk 0:00:09.6]} 73. g4 {[%clk 0:01:00.4]} 73... Kf3 {[%clk 0:00:09.5]} 74.
gxh5 {[%clk 0:00:48]} 74... gxh5 {[%clk 0:00:08.5]} 75. f5 {[%clk 0:00:48.3]}
75... Kf2 {[%clk 0:00:07.3]} 76. f6 {[%clk 0:00:45.2]} 76... Rg8 {[%clk
0:00:07.3]} 77. Re2+ {[%clk 0:00:40.8]} 77... Kxe2 {[%clk 0:00:06.6]} 78. f7
{[%clk 0:00:40.9]} 1-0

[Event "Early-Titled-Tuesday-Blitz-January-16-2024"]
[Site "Chess.com"]
[Date "2024.01.16"]
[Round "3"]
[White "AlexandraSamaganova"]
[Black "FMVolodymyrSakun"]
[Result "1-0"]
[WhiteElo "2317"]
[BlackElo "2566"]
[TimeControl "180+1"]
[EndTime "8:30:39 PST"]
[Termination "AlexandraSamaganova won by resignation"]

1. c4 {[%clk 0:03:00.9]} 1... g6 {[%clk 0:02:57]} 2. Nc3 {[%clk 0:02:56.7]} 2...
Bg7 {[%clk 0:02:55.3]} 3. g3 {[%clk 0:02:56.3]} 3... e5 {[%clk 0:02:52.8]} 4.
Bg2 {[%clk 0:02:56]} 4... Nc6 {[%clk 0:02:51]} 5. e3 {[%clk 0:02:56.2]} 5...
Nge7 {[%clk 0:02:49.6]} 6. Nge2 {[%clk 0:02:55.6]} 6... d6 {[%clk 0:02:49.5]} 7.
O-O {[%clk 0:02:54.3]} 7... O-O {[%clk 0:02:49.4]} 8. d4 {[%clk 0:02:54.2]} 8...
a6 {[%clk 0:02:42.7]} 9. a3 {[%clk 0:02:44.1]} 9... Bg4 {[%clk 0:02:31.4]} 10.
h3 {[%clk 0:02:42.4]} 10... Bxe2 {[%clk 0:02:27.2]} 11. Nxe2 {[%clk 0:02:42.4]}
11... f5 {[%clk 0:02:11.1]} 12. b4 {[%clk 0:02:26.5]} 12... e4 {[%clk 0:01:40]}
13. b5 {[%clk 0:02:09.8]} 13... axb5 {[%clk 0:01:33.3]} 14. cxb5 {[%clk
0:02:09.7]} 14... Nb8 {[%clk 0:01:32.8]} 15. Qb3+ {[%clk 0:02:04.2]} 15... Kh8
{[%clk 0:01:27.7]} 16. Bb2 {[%clk 0:01:57.9]} 16... Nd7 {[%clk 0:01:19.7]} 17.
Nf4 {[%clk 0:01:53.9]} 17... Rf6 {[%clk 0:01:03.3]} 18. Rfc1 {[%clk 0:01:30.3]}
18... c6 {[%clk 0:01:01]} 19. bxc6 {[%clk 0:01:23.8]} 19... bxc6 {[%clk
0:01:00.5]} 20. a4 {[%clk 0:01:20.5]} 20... d5 {[%clk 0:00:57.7]} 21. Ba3 {[%clk
0:01:18.3]} 21... g5 {[%clk 0:00:47.9]} 22. Nh5 {[%clk 0:01:11.5]} 22... Rg6
{[%clk 0:00:47.9]} 23. Nxg7 {[%clk 0:01:01.5]} 23... Kxg7 {[%clk 0:00:47.9]} 24.
Bxe7 {[%clk 0:00:54.2]} 24... Qxe7 {[%clk 0:00:47.6]} 25. Qb7 {[%clk 0:00:54.3]}
25... Rb8 {[%clk 0:00:39.5]} 26. Qa7 {[%clk 0:00:53.2]} 26... Re6 {[%clk
0:00:32.7]} 27. a5 {[%clk 0:00:50.4]} 27... f4 {[%clk 0:00:26.5]} 28. Rab1
{[%clk 0:00:42.2]} 28... Rxb1 {[%clk 0:00:24.9]} 29. Rxb1 {[%clk 0:00:42.4]}
29... f3 {[%clk 0:00:18.7]} 30. Bf1 {[%clk 0:00:41.8]} 30... Qf7 {[%clk
0:00:17.8]} 31. Rb7 {[%clk 0:00:40]} 31... Re7 {[%clk 0:00:18]} 32. Qa6 {[%clk
0:00:27.9]} 32... Qe6 {[%clk 0:00:16]} 33. Rc7 {[%clk 0:00:20.6]} 33... Nb8
{[%clk 0:00:14.3]} 34. Rxe7+ {[%clk 0:00:17]} 34... Qxe7 {[%clk 0:00:14.2]} 35.
Qc8 {[%clk 0:00:17.1]} 35... Qa7 {[%clk 0:00:13.1]} 36. a6 {[%clk 0:00:16]}
36... Kg6 {[%clk 0:00:12.2]} 37. Qe6+ {[%clk 0:00:15.2]} 37... Kg7 {[%clk
0:00:12.1]} 38. Qf5 {[%clk 0:00:13.2]} 38... h6 {[%clk 0:00:11.9]} 39. Qc8
{[%clk 0:00:12.4]} 39... h5 {[%clk 0:00:10.7]} 40. Qe8 {[%clk 0:00:10.7]} 40...
h4 {[%clk 0:00:10.3]} 41. Qh5 {[%clk 0:00:08.4]} 41... hxg3 {[%clk 0:00:09.7]}
42. Qxg5+ {[%clk 0:00:08.7]} 42... Kf7 {[%clk 0:00:10]} 43. Qxg3 {[%clk
0:00:08.7]} 43... Nxa6 {[%clk 0:00:10.1]} 44. Qf4+ {[%clk 0:00:06.7]} 44... Ke6
{[%clk 0:00:10]} 45. Qe5+ {[%clk 0:00:06.6]} 45... Kd7 {[%clk 0:00:10]} 46. h4
{[%clk 0:00:06.9]} 46... Nc7 {[%clk 0:00:09.7]} 47. Bh3+ {[%clk 0:00:06.9]}
47... Kd8 {[%clk 0:00:08.6]} 48. Qd6+ {[%clk 0:00:04.7]} 48... Ke8 {[%clk
0:00:08.9]} 49. Qxc6+ {[%clk 0:00:05.1]} 49... Ke7 {[%clk 0:00:08.6]} 50. Qd7+
{[%clk 0:00:04.9]} 50... Kf6 {[%clk 0:00:08.9]} 51. Qf5+ {[%clk 0:00:04.7]}
51... Kg7 {[%clk 0:00:08.9]} 52. h5 {[%clk 0:00:04.3]} 52... Qb6 {[%clk
0:00:08.7]} 53. Qg4+ {[%clk 0:00:03.7]} 53... Kh6 {[%clk 0:00:08.4]} 54. Qd7
{[%clk 0:00:02.8]} 54... Kxh5 {[%clk 0:00:07.5]} 55. Qg4+ {[%clk 0:00:02.9]}
55... Kh6 {[%clk 0:00:07.7]} 56. Qh4+ {[%clk 0:00:02.9]} 56... Kg7 {[%clk
0:00:08.1]} 57. Qg4+ {[%clk 0:00:03.3]} 57... Qg6 {[%clk 0:00:08.1]} 58. Kh2
{[%clk 0:00:03.1]} 58... Ne6 {[%clk 0:00:07.9]} 59. Qxe6 {[%clk 0:00:03]} 59...
Qxe6 {[%clk 0:00:08]} 60. Bxe6 {[%clk 0:00:03.6]} 60... Kf6 {[%clk 0:00:08.1]}
61. Bxd5 {[%clk 0:00:04.3]} 61... Kf5 {[%clk 0:00:08.8]} 62. Bc6 {[%clk
0:00:04.5]} 62... Kg5 {[%clk 0:00:08.8]} 63. Bxe4 {[%clk 0:00:04.9]} 63... Kg4
{[%clk 0:00:09.7]} 64. Bd5 {[%clk 0:00:05.4]} 64... Kf5 {[%clk 0:00:10]} 65.
Bxf3 {[%clk 0:00:06]} 65... Kf6 {[%clk 0:00:10.6]} 66. Kg3 {[%clk 0:00:06.5]}
66... Kf5 {[%clk 0:00:11.4]} 67. Bg4+ {[%clk 0:00:06.6]} 67... Kg5 {[%clk
0:00:12.3]} 68. Kf3 {[%clk 0:00:06.8]} 68... Kf6 {[%clk 0:00:13.2]} 69. Kf4
{[%clk 0:00:07.3]} 69... Kg6 {[%clk 0:00:12.9]} 70. Be2 {[%clk 0:00:07.9]} 70...
Kf6 {[%clk 0:00:12.6]} 71. Ke4 {[%clk 0:00:08.4]} 71... Ke6 {[%clk 0:00:13.3]}
72. f4 {[%clk 0:00:08.5]} 72... Kd6 {[%clk 0:00:14.2]} 73. Kf5 {[%clk
0:00:08.8]} 73... Kd5 {[%clk 0:00:14.5]} 74. Kg6 {[%clk 0:00:08.8]} 74... Ke4
{[%clk 0:00:14.9]} 75. f5 {[%clk 0:00:09.3]} 75... Kxe3 {[%clk 0:00:15.4]} 76.
f6 {[%clk 0:00:09.9]} 76... Kxe2 {[%clk 0:00:15.9]} 77. f7 {[%clk 0:00:10.4]}
77... Kd3 {[%clk 0:00:16.6]} 78. f8=Q {[%clk 0:00:11]} 78... Kxd4 {[%clk
0:00:17.3]} 79. Kf5 {[%clk 0:00:10.7]} 1-0

[Event "Early-Titled-Tuesday-Blitz-January-16-2024"]
[Site "Chess.com"]
[Date "2024.01.16"]
[Round "3"]
[White "Leebit02"]
[Black "MightyGMpretender"]
[Result "0-1"]
[WhiteElo "2560"]
[BlackElo "2842"]
[TimeControl "180+1"]
[EndTime "8:30:41 PST"]
[Termination "MightyGMpretender won on time"]

1. d4 {[%clk 0:02:59.6]} 1... Nf6 {[%clk 0:03:00.3]} 2. c4 {[%clk 0:02:56.7]}
2... g6 {[%clk 0:03:00.6]} 3. Nc3 {[%clk 0:02:56.6]} 3... Bg7 {[%clk 0:02:56.8]}
4. e4 {[%clk 0:02:56.6]} 4... O-O {[%clk 0:02:57.4]} 5. h3 {[%clk 0:02:56.9]}
5... c5 {[%clk 0:02:54.9]} 6. Nf3 {[%clk 0:02:53.9]} 6... cxd4 {[%clk
0:02:54.2]} 7. Nxd4 {[%clk 0:02:54.3]} 7... Nc6 {[%clk 0:02:54.9]} 8. Be3 {[%clk
0:02:51.1]} 8... d6 {[%clk 0:02:49.9]} 9. Be2 {[%clk 0:02:31.8]} 9... Bd7 {[%clk
0:02:49.7]} 10. O-O {[%clk 0:02:30.8]} 10... Nxd4 {[%clk 0:02:49.9]} 11. Bxd4
{[%clk 0:02:31.3]} 11... Bc6 {[%clk 0:02:50.1]} 12. Qd3 {[%clk 0:02:17.3]} 12...
Qa5 {[%clk 0:02:46]} 13. b3 {[%clk 0:02:13]} 13... Rfc8 {[%clk 0:02:44.6]} 14.
f4 {[%clk 0:02:11.3]} 14... Nd7 {[%clk 0:02:42.8]} 15. Bxg7 {[%clk 0:02:09.4]}
15... Kxg7 {[%clk 0:02:42.9]} 16. Bg4 {[%clk 0:02:02.9]} 16... e6 {[%clk
0:02:30.4]} 17. Kh1 {[%clk 0:01:52.3]} 17... Rd8 {[%clk 0:02:29.5]} 18. Rad1
{[%clk 0:01:47.5]} 18... Nf6 {[%clk 0:02:06.7]} 19. Bf3 {[%clk 0:01:45.3]} 19...
a6 {[%clk 0:02:03.9]} 20. a4 {[%clk 0:01:32.6]} 20... Rac8 {[%clk 0:01:59.4]}
21. f5 {[%clk 0:01:26.7]} 21... Qe5 {[%clk 0:01:53.8]} 22. Rde1 {[%clk 0:01:06]}
22... Bd7 {[%clk 0:01:45.6]} 23. Bg4 {[%clk 0:00:54.1]} 23... b5 {[%clk
0:01:42.3]} 24. axb5 {[%clk 0:00:48.6]} 24... axb5 {[%clk 0:01:42.4]} 25. fxe6
{[%clk 0:00:40.1]} 25... bxc4 {[%clk 0:01:38.9]} 26. bxc4 {[%clk 0:00:39.6]}
26... fxe6 {[%clk 0:01:38.8]} 27. Be2 {[%clk 0:00:32]} 27... Bc6 {[%clk
0:01:34.7]} 28. Bf3 {[%clk 0:00:30]} 28... Rb8 {[%clk 0:01:30.4]} 29. Rb1 {[%clk
0:00:30.2]} 29... Ra8 {[%clk 0:01:05.7]} 30. Rfd1 {[%clk 0:00:26]} 30... Ra3
{[%clk 0:01:03.7]} 31. Rbc1 {[%clk 0:00:23.4]} 31... Ne8 {[%clk 0:00:39.8]} 32.
Qd4 {[%clk 0:00:23.5]} 32... Qxd4 {[%clk 0:00:36.3]} 33. Rxd4 {[%clk 0:00:23.9]}
33... Rb8 {[%clk 0:00:35.9]} 34. Bg4 {[%clk 0:00:21.4]} 34... Kf6 {[%clk
0:00:31]} 35. Rd2 {[%clk 0:00:20.3]} 35... Ke7 {[%clk 0:00:30.3]} 36. Bf3 {[%clk
0:00:18.7]} 36... Rbb3 {[%clk 0:00:27.4]} 37. Ne2 {[%clk 0:00:19]} 37... e5
{[%clk 0:00:14.5]} 38. c5 {[%clk 0:00:19.6]} 38... Rd3 {[%clk 0:00:07.1]} 39.
cxd6+ {[%clk 0:00:18.7]} 39... Kxd6 {[%clk 0:00:07.7]} 40. Rdc2 {[%clk
0:00:17.9]} 40... Ba4 {[%clk 0:00:07.9]} 41. Rc8 {[%clk 0:00:17.3]} 41... Bd7
{[%clk 0:00:06.9]} 42. R8c4 {[%clk 0:00:15.7]} 42... Ke7 {[%clk 0:00:07]} 43.
Nc3 {[%clk 0:00:14.9]} 43... Nf6 {[%clk 0:00:05.7]} 44. Nd5+ {[%clk 0:00:13.3]}
44... Nxd5 {[%clk 0:00:05.8]} 45. exd5 {[%clk 0:00:13.9]} 45... Bxh3 {[%clk
0:00:06.1]} 46. Be4 {[%clk 0:00:13.2]} 46... Bf5 {[%clk 0:00:04.1]} 47. Bxd3
{[%clk 0:00:13.1]} 47... Rxd3 {[%clk 0:00:04.8]} 48. Rc7+ {[%clk 0:00:12.6]}
48... Kf6 {[%clk 0:00:05.3]} 49. R1c6+ {[%clk 0:00:11.3]} 49... Kg5 {[%clk
0:00:05.5]} 50. d6 {[%clk 0:00:12]} 50... Be4 {[%clk 0:00:05.1]} 51. Rb6 {[%clk
0:00:10.9]} 51... Rd2 {[%clk 0:00:04.9]} 52. Rc3 {[%clk 0:00:10.3]} 52... Bxg2+
{[%clk 0:00:04.8]} 53. Kg1 {[%clk 0:00:10.7]} 53... Be4 {[%clk 0:00:05.2]} 54.
Re3 {[%clk 0:00:09.3]} 54... Kf4 {[%clk 0:00:04.9]} 55. Re1 {[%clk 0:00:09.5]}
55... Bf5 {[%clk 0:00:04.4]} 56. Rb4+ {[%clk 0:00:09.2]} 56... e4 {[%clk
0:00:04.8]} 57. Rf1+ {[%clk 0:00:07.6]} 57... Ke5 {[%clk 0:00:04.9]} 58. Rb6
{[%clk 0:00:06.3]} 58... Rxd6 {[%clk 0:00:04.8]} 59. Rxd6 {[%clk 0:00:06.8]}
59... Kxd6 {[%clk 0:00:05.7]} 60. Kf2 {[%clk 0:00:07.4]} 60... Ke5 {[%clk
0:00:06.1]} 61. Ke3 {[%clk 0:00:07.8]} 61... h5 {[%clk 0:00:06.8]} 62. Rg1
{[%clk 0:00:08.1]} 62... Bg4 {[%clk 0:00:06.3]} 63. Ra1 {[%clk 0:00:05.8]} 63...
Bf5 {[%clk 0:00:04.2]} 64. Ra5+ {[%clk 0:00:06.5]} 64... Kf6 {[%clk 0:00:04.8]}
65. Kf4 {[%clk 0:00:07]} 65... g5+ {[%clk 0:00:05.3]} 66. Ke3 {[%clk 0:00:07.6]}
66... h4 {[%clk 0:00:05.9]} 67. Ra6+ {[%clk 0:00:07.4]} 67... Kg7 {[%clk
0:00:06.4]} 68. Ra5 {[%clk 0:00:07.2]} 68... Kg6 {[%clk 0:00:06.8]} 69. Ra6+
{[%clk 0:00:06.8]} 69... Kh5 {[%clk 0:00:07.2]} 70. Ra5 {[%clk 0:00:06.9]} 70...
Kg4 {[%clk 0:00:07.8]} 71. Ra1 {[%clk 0:00:06.5]} 71... h3 {[%clk 0:00:08.3]}
72. Rg1+ {[%clk 0:00:06.9]} 72... Kh4 {[%clk 0:00:08.8]} 73. Kf2 {[%clk
0:00:07]} 73... Bg4 {[%clk 0:00:08.9]} 74. Re1 {[%clk 0:00:05.3]} 74... Bf3
{[%clk 0:00:09.2]} 75. Ra1 {[%clk 0:00:03.9]} 75... h2 {[%clk 0:00:08.7]} 0-1

[Event "Early-Titled-Tuesday-Blitz-January-16-2024"]
[Site "Chess.com"]
[Date "2024.01.16"]
[Round "3"]
[White "maciek_92"]
[Black "masterofpuppets2"]
[Result "0-1"]
[WhiteElo "2837"]
[BlackElo "2535"]
[TimeControl "180+1"]
[EndTime "8:30:44 PST"]
[Termination "masterofpuppets2 won by resignation"]

1. e4 {[%clk 0:03:00.9]} 1... c5 {[%clk 0:02:58.2]} 2. Nc3 {[%clk 0:03:00.1]}
2... Nc6 {[%clk 0:02:58.3]} 3. Bc4 {[%clk 0:02:58.4]} 3... g6 {[%clk 0:02:43.7]}
4. f4 {[%clk 0:02:56.4]} 4... Bg7 {[%clk 0:02:42.6]} 5. Nf3 {[%clk 0:02:57.2]}
5... e6 {[%clk 0:02:42.8]} 6. d4 {[%clk 0:02:37]} 6... cxd4 {[%clk 0:02:29.9]}
7. Nb5 {[%clk 0:02:36.9]} 7... d5 {[%clk 0:02:24]} 8. exd5 {[%clk 0:02:28.8]}
8... exd5 {[%clk 0:02:24.9]} 9. Be2 {[%clk 0:02:24.1]} 9... Qb6 {[%clk
0:02:07.1]} 10. f5 {[%clk 0:02:14.6]} 10... Nge7 {[%clk 0:01:49.9]} 11. f6
{[%clk 0:01:08.1]} 11... Bxf6 {[%clk 0:01:48.9]} 12. Nd6+ {[%clk 0:01:07.8]}
12... Kf8 {[%clk 0:01:43.3]} 13. Bh6+ {[%clk 0:01:06.4]} 13... Bg7 {[%clk
0:01:43.2]} 14. Qd2 {[%clk 0:00:55.8]} 14... Nf5 {[%clk 0:00:55.9]} 15. Nxf5
{[%clk 0:00:46.6]} 15... Bxf5 {[%clk 0:00:55.4]} 16. Rd1 {[%clk 0:00:25.6]}
16... Qxb2 {[%clk 0:00:48]} 17. O-O {[%clk 0:00:15.5]} 17... Qxc2 {[%clk
0:00:48.1]} 18. Bxg7+ {[%clk 0:00:13.1]} 18... Kxg7 {[%clk 0:00:47.7]} 19. Nxd4
{[%clk 0:00:13.4]} 19... Qxd2 {[%clk 0:00:28.1]} 20. Nxf5+ {[%clk 0:00:13.8]}
20... gxf5 {[%clk 0:00:29]} 21. Rxd2 {[%clk 0:00:14.4]} 21... Ne7 {[%clk
0:00:26.7]} 22. Bd3 {[%clk 0:00:11.8]} 22... Rac8 {[%clk 0:00:20.3]} 23. Rdf2
{[%clk 0:00:10.7]} 23... Rc3 {[%clk 0:00:19.3]} 24. Bxf5 {[%clk 0:00:10.1]}
24... Rf8 {[%clk 0:00:17]} 25. Be6 {[%clk 0:00:07.6]} 25... f6 {[%clk
0:00:15.5]} 26. Rd2 {[%clk 0:00:05.7]} 26... Rc5 {[%clk 0:00:14.8]} 27. Rf4
{[%clk 0:00:05.7]} 27... Ng6 {[%clk 0:00:14.2]} 28. Rb4 {[%clk 0:00:06.2]} 28...
b6 {[%clk 0:00:14]} 29. Rxd5 {[%clk 0:00:03.9]} 29... Rxd5 {[%clk 0:00:14.4]}
30. Bxd5 {[%clk 0:00:04.8]} 30... Rd8 {[%clk 0:00:14.9]} 31. Bb3 {[%clk
0:00:05.1]} 31... Rd2 {[%clk 0:00:12.6]} 32. Rc4 {[%clk 0:00:05.3]} 32... a5
{[%clk 0:00:11.9]} 33. Rc7+ {[%clk 0:00:05.3]} 33... Kh6 {[%clk 0:00:12.3]} 34.
Bg8 {[%clk 0:00:04.9]} 34... Nf8 {[%clk 0:00:09.7]} 35. Rf7 {[%clk 0:00:04.7]}
35... Rd8 {[%clk 0:00:09.5]} 36. Rb7 {[%clk 0:00:02.8]} 36... Rd6 {[%clk
0:00:06.8]} 37. Bb3 {[%clk 0:00:03]} 37... Ng6 {[%clk 0:00:06.6]} 38. g3 {[%clk
0:00:02.6]} 38... Ne5 {[%clk 0:00:06.8]} 39. h4 {[%clk 0:00:02.9]} 39... Kh5
{[%clk 0:00:06.6]} 40. Kg2 {[%clk 0:00:03]} 40... Rd2+ {[%clk 0:00:06.3]} 41.
Kh3 {[%clk 0:00:02.8]} 41... Nf3 {[%clk 0:00:06.3]} 42. Rxh7+ {[%clk 0:00:02.6]}
42... Kg6 {[%clk 0:00:06.7]} 43. Re7 {[%clk 0:00:02.5]} 43... Rh2+ {[%clk
0:00:06.1]} 44. Kg4 {[%clk 0:00:02.4]} 44... Ne5+ {[%clk 0:00:06.5]} 45. Kf4
{[%clk 0:00:02.9]} 45... Rf2+ {[%clk 0:00:06.6]} 46. Ke4 {[%clk 0:00:02.4]}
46... Re2+ {[%clk 0:00:07.1]} 47. Kd5 {[%clk 0:00:03]} 47... Rd2+ {[%clk
0:00:07.3]} 48. Ke6 {[%clk 0:00:03]} 48... Ng4 {[%clk 0:00:06.1]} 49. Rb7 {[%clk
0:00:02.7]} 49... Re2+ {[%clk 0:00:05.9]} 50. Kd6 {[%clk 0:00:03.1]} 50... Rd2+
{[%clk 0:00:06.1]} 51. Ke7 {[%clk 0:00:03.6]} 51... Re2+ {[%clk 0:00:06]} 52.
Kf8 {[%clk 0:00:04]} 52... Nh6 {[%clk 0:00:05.8]} 53. Rg7+ {[%clk 0:00:04]}
53... Kh5 {[%clk 0:00:05.8]} 54. Bf7+ {[%clk 0:00:03.5]} 54... Nxf7 {[%clk
0:00:04.1]} 55. Kxf7 {[%clk 0:00:04.4]} 55... Rf2 {[%clk 0:00:03.5]} 56. a4
{[%clk 0:00:03.9]} 56... Rf3 {[%clk 0:00:02.4]} 57. Rg6 {[%clk 0:00:04]} 57...
f5 {[%clk 0:00:02]} 58. Rg5+ {[%clk 0:00:03.8]} 58... Kh6 {[%clk 0:00:02.6]} 59.
Kf6 {[%clk 0:00:04.3]} 59... Ra3 {[%clk 0:00:02.8]} 60. Rg8 {[%clk 0:00:03.8]}
60... Kh7 {[%clk 0:00:02.3]} 61. Rg7+ {[%clk 0:00:04.1]} 61... Kh6 {[%clk
0:00:02.8]} 62. Rg6+ {[%clk 0:00:04.2]} 62... Kh7 {[%clk 0:00:03.2]} 63. Rg5
{[%clk 0:00:02.6]} 63... Rxa4 {[%clk 0:00:03.6]} 64. Rh5+ {[%clk 0:00:02.6]}
64... Kg8 {[%clk 0:00:03.7]} 65. Kxf5 {[%clk 0:00:03.3]} 65... Rc4 {[%clk
0:00:03.4]} 66. Kf6 {[%clk 0:00:02.4]} 66... Rc6+ {[%clk 0:00:03.6]} 67. Ke7
{[%clk 0:00:03]} 67... Rc7+ {[%clk 0:00:03.5]} 68. Ke6 {[%clk 0:00:03]} 68...
Rc6+ {[%clk 0:00:03.7]} 69. Ke7 {[%clk 0:00:02.6]} 69... Rc3 {[%clk 0:00:03.7]}
70. Rg5+ {[%clk 0:00:02.7]} 70... Kh7 {[%clk 0:00:03.7]} 71. h5 {[%clk
0:00:03.2]} 71... Kh6 {[%clk 0:00:03.2]} 72. Kf6 {[%clk 0:00:02.1]} 72... Rc6+
{[%clk 0:00:02.8]} 73. Kf5 {[%clk 0:00:02.6]} 73... Rc5+ {[%clk 0:00:03.5]} 74.
Kf4 {[%clk 0:00:03.4]} 74... Rxg5 {[%clk 0:00:04.2]} 75. g4 {[%clk 0:00:04.2]}
0-1